[Event "Israel Team Championship 2025"]
[Site "Israel"]
[Date "2025.01.17"]
[Round "3.7"]
[White "Predke, Alexandr"]
[Black "Peng, Li Min"]
[Result "1/2-1/2"]
[Annotator "TA"]
[ECO "B90"]
[WhiteElo "2631"]
[BlackElo "2518"]
[PlyCount "54"]
[EventDate "2025.01.07"]
[EventType "team-tourn"]
[EventCountry "ISR"]
[SourceTitle "playchess.com"]
[Source "ChessBase"]
[SourceQuality "1"]
[TimeControl "40/5400+30:1800+30"]

{[%evp 20,54,28,22,5,27,23,13,19,22,16,24,46,50,42,0,0,0,0,0,0,0,0,0,0,0,0,-7,-4,-8,0,0,0,0,0,0,0]} 1. e4 {[%emt 0:00:55]} c5 {[%emt 0:01:32]} 2. Nf3 {[%emt 0:00:12]} d6 {[%emt 0:00:16]} 3. d4 {[%emt 0:00:07]} cxd4 {[%emt 0:00:05]} 4. Nxd4 {[%emt 0:00:06]} Nf6 {[%emt 0:00:09]} 5. Nc3 {[%emt 0:00:10]} a6 {[%emt 0:00:18]} 6. Be3 {[%emt 0:00:09]} Ng4 {[%emt 0:00:08]} 7. Bg5 {[%emt 0:00:06]} h6 {[%emt 0:00:10]} 8. Bh4 {[%emt 0:00:20]} g5 {[%emt 0:00:08]} 9. Bg3 {[%emt 0:00:05]} Bg7 {[%emt 0:03:36]} 10. h3 {[%emt 0:00:33]} Ne5 {[%emt 0:00:11]} 11. Nf5 {[%emt 0:00:09]} Bxf5 {[%emt 0:00:10]} 12. exf5 {[%emt 0:00:04]} Nbc6 {[%emt 0:00:38]} 13. Nd5 {[%emt 0:00:56]} e6 {[%emt 0:03:28]} 14. fxe6 {[%emt 0:00:15]} fxe6 {[%emt 0:00:04]} 15. Ne3 {[%emt 0:00:04]} Qa5+ {[%emt 0:00:06]} 16. c3 {[%emt 0:00:06]} Nf3+ {[%emt 0:01:21]} 17. gxf3 {[%emt 0:00:15]} (17. Qxf3 {feels hotter.} Bxc3+ 18. Kd1 Bxb2 19. Qe4) 17... Bxc3+ $1 {[%emt 0:00:09]} 18. bxc3 {[%emt 0:00:03]} Qxc3+ {[%emt 0:00:06]} 19. Qd2 {[%emt 0:00:05]} Qxa1+ {[%emt 0:00:06]} 20. Nd1 {[%emt 0:00:05]} Qd4 {[%emt 0:26:10]} 21. Bd3 {[%emt 0:33:33]} (21. Bxd6 $2 Qxd2+ 22. Kxd2 O-O-O $19) (21. Ne3 {simplifies} Qxd2+ 22. Kxd2 b5 23. f4) 21... Ne5 {[%emt 0:00:07]} 22. Bg6+ {[%emt 0:15:18]} Ke7 {[%emt 0:00:07]} 23. Bxe5 {[%emt 0:00:54]} (23. Qxd4 Nxf3+ (23... Nxg6 $2 {perishes.} 24. Qg7+ Kd8 25. Bxd6 $18) 24. Kf1 Nxd4 $14) 23... Qxd2+ {[%emt 0:28:27]} 24. Kxd2 {[%emt 0:00:08]} dxe5 {[%emt 0:00:01]} 25. Ne3 {[%emt 0:00:44]} Rad8+ {[%emt 0:00:42]} 26. Ke2 {[%emt 0:09:14]} b5 {[%emt 0:00:26]} 27. Be4 {[%emt 0:02:55]} h5 {[%emt 0:00:35]} 1/2-1/2

[Event "Israel Team Championship 2025"]
[Site "Israel"]
[Date "2025.01.17"]
[Round "3.8"]
[White "Aizenberg, Benny"]
[Black "Mikhalevski, Victor"]
[Result "1/2-1/2"]
[Annotator "TA"]
[ECO "C80"]
[WhiteElo "2426"]
[BlackElo "2503"]
[PlyCount "137"]
[EventDate "2025.01.07"]
[EventType "team-tourn"]
[EventCountry "ISR"]
[SourceTitle "playchess.com"]
[Source "ChessBase"]
[SourceQuality "1"]
[TimeControl "40/5400+30:1800+30"]

{[%evp 17,137,7,1,0,0,0,0,0,0,0,5,0,0,2,15,16,17,-4,7,-5,-6,-13,0,0,0,0,-2,0,0,0,0,0,0,0,0,0,0,-8,-12,-15,0,0,0,0,0,0,0,0,0,0,8,8,11,18,46,51,60,9,10,8,10,6,1146,470,1147,1257,1327,1376,964,200,1386,1385,1239,1132,1437,1262,2272,129,129,133,260,0,0,0,0,0,0,0,0,0,0,0,0,0,0,0,0,0,0,0,0,0,0,0,0,0,0,0,0,0,0,0,0,0,0,0,0,0,0,0,0,0]} 1. e4 {[%emt 0:02:36]} e5 {[%emt 0:00:27]} 2. Nf3 {[%emt 0:00:05]} Nc6 {[%emt 0:00:05]} 3. Bb5 {[%emt 0:00:05]} a6 {[%emt 0:00:11]} 4. Ba4 {[%emt 0:00:03]} Nf6 {[%emt 0:00:22]} 5. O-O {[%emt 0:00:09]} Nxe4 {[%emt 0:00:22]} 6. d4 {[%emt 0:00:12]} b5 {[%emt 0:00:06]} 7. Bb3 {[%emt 0:00:03]} d5 {[%emt 0:00:05]} 8. Nxe5 {[%emt 0:00:08]} Nxe5 {[%emt 0:00:08]} 9. dxe5 {[%emt 0:00:04]} c6 {[%emt 0:00:23]} 10. Nd2 {[%emt 0:00:04]} Nxd2 {[%emt 0:04:59]} 11. Qxd2 {[%emt 0:00:08]} Bf5 {[%emt 0:05:00]} 12. a4 {[%emt 0:00:06]} Be7 {[%emt 0:12:10]} 13. Qf4 {[%emt 0:00:05]} Bg6 {[%emt 0:03:44]} 14. Be3 {[%emt 0:00:08]} O-O {[%emt 0:00:37]} 15. c3 {[%emt 0:00:07]} Qd7 {[%emt 0:04:14]} 16. Bd1 {[%emt 0:05:20]} Bf5 {[%emt 0:16:59]} 17. g4 {[%emt 0:19:31]} Be4 {[%emt 0:11:58]} 18. f3 {[%emt 0:14:33]} (18. g5 {is interesting.} Qh3 19. Qg4 Bf5 20. Qxh3 Bxh3 21. Re1) 18... Bg6 {[%emt 0:10:15][%cal Ob5b4]} 19. Qg3 {[%emt 0:06:13]} f6 {[%emt 0:05:09]} 20. exf6 {[%emt 0:03:18]} Bxf6 {[%emt 0:00:49][%cal Ob5b4]} 21. f4 {[%emt 0:03:02]} Be4 {[%emt 0:04:57][%cal Ob5b4]} 22. Bf3 {[%emt 0:04:14]} Bxf3 {[%emt 0:10:31]} 23. Qxf3 {[%emt 0:01:38]} Rae8 {[%emt 0:02:16]} 24. axb5 {[%emt 0:05:19]} axb5 {[%emt 0:00:04]} 25. Bc5 {[%emt 0:03:22]} Be7 {[%emt 0:02:04]} 26. Bd4 {[%emt 0:00:37]} Bf6 {[%emt 0:01:43]} 27. Bxf6 {[%emt 0:02:13]} Rxf6 {[%emt 0:00:15]} 28. f5 {[%emt 0:00:15] Repels Rfe6} Rf7 {[%emt 0:01:29]} 29. h3 {[%emt 0:04:11]} Rfe7 {[%emt 0:01:07]} 30. f6 {[%emt 0:05:18]} Rf7 {[%emt 0:00:07]} 31. g5 {[%emt 0:00:04]} Ref8 {[%emt 0:00:16]} 32. Qg3 {[%emt 0:01:34]} gxf6 {[%emt 0:00:41]} 33. Rxf6 {[%emt 0:01:13]} Qe8 {[%emt 0:01:32]} 34. Re1 {[%emt 0:01:12]} Re7 {[%emt 0:00:07]} 35. Ref1 {[%emt 0:00:34]} Ref7 {[%emt 0:00:06]} 36. Kh2 {[%emt 0:01:01]} Qe4 {[%emt 0:01:18]} 37. R1f2 {[%emt 0:01:55]} ({Better is} 37. R1f4 $14 Qe2+ 38. Rf2) 37... d4 $1 $11 {[%emt 0:00:38]} 38. cxd4 {[%emt 0:01:39]} Qxd4 {[%emt 0:00:14]} 39. h4 {[%emt 0:00:51]} Qd1 $2 {[%emt 0:01:44][%mdl 8192] [#]} (39... c5 $11) 40. Rxf7 $1 $18 Rxf7 {[%emt 0:00:01][%mdl 4096] Endgame KQR-KQR} 41. Qb8+ {[%emt 0:33:34]} Kg7 {[%emt 0:30:04]} 42. Qe5+ {[%emt 0:00:05]} Kf8 {[%emt 0:00:06]} 43. Qh8+ {[%emt 0:00:16]} Ke7 {[%emt 0:00:04]} 44. Rxf7+ {[%emt 0:00:16]} Kxf7 {[%emt 0:00:04]} 45. Qxh7+ {[%emt 0:00:07] KQ-KQ. White is a pawn up.} Kf8 {[%emt 0:02:50]} 46. Qf5+ {[%emt 0:07:01]} Kg7 {[%emt 0:00:00]} 47. Qe5+ $2 {[%emt 0:00:00]} (47. Qf6+ $18 Kg8 48. Qg6+ (48. Qxc6 Qe2+ 49. Kh3 Qxb2 $16) 48... Kh8 49. Qf6+ (49. Qxc6 Qe2+ 50. Kg3 Qxb2 $18) 49... Kh7 50. g6+ (50. Qxc6 Qd2+ 51. Qg2 Qf4+ 52. Kh3 Qf5+ 53. Kg3 Qe5+ 54. Kg4 Qe6+ 55. Kf4 Qd6+ 56. Ke3 Qc5+ 57. Kd2 Qd4+ 58. Kc1 Qf4+ 59. Qd2 Qf1+ 60. Kc2 Qc4+ 61. Qc3 Qf7 $18) 50... Kh6 51. Qf7 (51. Qxc6 Qe2+ 52. Qg2 Qe5+ 53. Kh3 Qf5+ 54. Kh2 Qe5+ 55. Qg3 Qxb2+ 56. Kh3 Qf6 $11) 51... Qe2+ 52. Kg3 Qe3+ 53. Kg4 Qe2+ 54. Kf5 Qh5+ 55. Ke6 Qd5+ 56. Ke7 Qe5+ 57. Kd7 Qd4+ 58. Kc8 (58. Kxc6 Qe4+ 59. Kc7 Qe5+ 60. Kc8 Qh8+ 61. Kb7 b4 $18) 58... Qh8+ 59. Kd7) 47... Kg6 $16 {[%emt 0:00:00]} 48. Qe4+ {[%emt 0:00:00]} Kh5 {[%emt 0:00:00]} (48... Kg7 $16 49. Qxc6 Qe2+ 50. Kg3 (50. Qg2 Qe3 $16) 50... Qxb2) 49. b4 $2 {[%emt 0:00:00]} ({Not} 49. Qxc6 Qe2+ 50. Kg3 (50. Qg2 Qe5+ 51. Kh3 Qf5+ 52. Kg3 Qe5+ 53. Kf3 Qd5+ 54. Kg3 Qe5+ 55. Kh3 Qe6+ 56. Kg3 Qg4+ 57. Kf2 Qd4+ 58. Kf3 Qd5+ 59. Kg3 Qd6+ 60. Kf2 Qd4+ 61. Ke1 Qxh4+ 62. Ke2 Qc4+ 63. Kd1 Qa4+ 64. Kc1 Qa1+ 65. Kc2 Qa4+ 66. Kd2 Qf4+ 67. Kd1 Qf5 $11) 50... Qg4+ 51. Kf2 Qxh4+ 52. Ke3 Qe1+ 53. Kf4 Qd2+ 54. Kg3 Qxg5+ 55. Kf3 Qf5+ 56. Ke2 Qe5+ 57. Kd1 Qxb2 $11) (49. Kg3 $18 {[%cal Re4h7]} Qg1+ 50. Qg2 Qe1+ (50... Qxg2+ $2 51. Kxg2 c5 52. Kf3 $18) 51. Kf4 Qc1+ 52. Kf5 Qc5+ 53. Ke6) 49... c5 $1 $11 {[%emt 0:00:00]} 50. bxc5 {[%emt 0:00:00]} b4 {[%emt 0:00:00]} 51. g6 {[%emt 0:00:00][%cal Og6g7]} Qd2+ {[%emt 0:00:00]} 52. Kg3 {[%emt 0:00:00] White wants to mate with g7.} Kh6 {[%emt 0:00:00]} 53. c6 {[%emt 0:05:04][%cal Og6g7] and g7! would now be decisive} b3 {[%emt 0:00:00]} 54. g7 {[%emt 0:00:10]} Qc3+ {[%emt 0:00:00]} 55. Kf4 {[%emt 0:00:33]} Kxg7 {[%emt 0:00:00]} 56. Qe7+ {[%emt 0:00:45]} Kh6 {[%emt 0:02:09]} 57. Qd6+ {[%emt 0:01:12]} Kg7 {[%emt 0:00:35]} 58. Qd7+ {[%emt 0:03:41]} Kh6 {[%emt 0:00:27]} 59. c7 {[%emt 0:01:07]} b2 {[%emt 0:00:27]} 60. Qe6+ {[%emt 0:00:37]} (60. c8=B b1=Q (60... b1=B 61. Qd6+ Bg6 62. Qf8+ Qg7 63. Qxg7+ Kxg7 64. Bf5 $11) 61. Qe6+ Qg6 62. Qxg6+ Kxg6 $19) 60... Kg7 {[%emt 0:00:31]} 61. Qe7+ {[%emt 0:00:18]} (61. c8=B $2 Qd4+ (61... b1=B 62. Qe7+ Kh6 63. Qg5+ Kh7 64. Qh5+ Kg7 65. Qg5+ Bg6 66. Qe5+ Qxe5+ 67. Kxe5 $11) 62. Kg5 Qg1+ (62... b1=B 63. Qe7+ Kh8 64. Qf8+ Kh7 65. Qh6+ Kg8 66. Be6#) 63. Kf4 b1=Q $19 (63... b1=B 64. Qg4+ Qxg4+ 65. Bxg4 $11) (63... Qd4+ $2 64. Kg5 $19)) 61... Kh6 {[%emt 0:00:18]} 62. Qf8+ {[%emt 0:00:12]} Kh7 {[%emt 0:00:12]} 63. Qf5+ {[%emt 0:00:14]} Kg7 {[%emt 0:00:23]} 64. Qg4+ {[%emt 0:01:44]} (64. c8=B $2 Qc1+ (64... Qb4+ 65. Kf3 $15) 65. Kg4 Qd1+ (65... b1=B 66. Qe5+ Kh7 67. Qh5+ Qh6 68. Qf7+ Qg7+ 69. Qxg7+ Kxg7 70. Kg5 $11) (65... b1=R 66. Qd7+ Kf8 67. Qd6+ Ke8 68. Bd7+ Kf7 69. Be6+ Kg6 70. Bc4+ Kh7 71. Qe7+ Kh8 72. Qf8+ Kh7 73. Bd3#) 66. Kh3 b1=Q $19 (66... b1=B 67. Qe5+ Kg6 68. Qe6+ Kg7 69. Qe5+ Kh7 70. Qe3 $11) (66... Qh1+ $2 67. Kg4 $19)) 64... Kh7 {[%emt 0:01:04]} 65. Qd7+ {[%emt 0:00:11]} Kh6 {[%emt 0:00:06]} 66. Qd6+ {[%emt 0:00:21]} (66. c8=B $2 b1=Q (66... b1=B 67. Qe6+ Bg6 68. h5 $11) 67. Qe6+ Qg6 68. Qxg6+ Kxg6 $19) 66... Kh7 {[%emt 0:00:24]} 67. Qe7+ {[%emt 0:00:35]} Kh6 {[%emt 0:00:11]} 68. Qe6+ {[%emt 0:00:06]} Kg7 {[%emt 0:00:18]} 69. Qd7+ {[%emt 0:00:17]} (69. c8=B $2 {is the wrong capture.} Qd4+ (69... b1=B 70. Qe5+ Qxe5+ 71. Kxe5 $11) (69... b1=Q 70. Qe7+ Kh6 71. Qg5+ Kh7 72. Bf5+ $11) 70. Kg5 Qg1+ (70... b1=B 71. Qe7+ Kh8 72. Qf8+ Kh7 73. Qh6+ Kg8 74. Be6#) 71. Kf4 b1=Q $19 (71... b1=B 72. Qe5+ Kh6 73. Qg5+ Qxg5+ 74. hxg5+ Kg6 75. Bd7 $11) (71... Qd4+ 72. Kg5 $19)) 1/2-1/2

[Event "Israel Team Championship 2025"]
[Site "Israel"]
[Date "2025.01.17"]
[Round "3.9"]
[White "Parkhov, Yair"]
[Black "Rechlis, Gad"]
[Result "1-0"]
[Annotator "TA"]
[ECO "E71"]
[WhiteElo "2508"]
[BlackElo "2459"]
[PlyCount "89"]
[EventDate "2025.01.07"]
[EventType "team-tourn"]
[EventCountry "ISR"]
[SourceTitle "playchess.com"]
[Source "ChessBase"]
[SourceQuality "1"]
[TimeControl "40/5400+30:1800+30"]

{[%evp 13,89,30,50,44,58,36,65,43,97,57,23,35,60,66,40,13,39,8,7,11,8,6,20,0,6,0,0,0,0,0,0,-17,-19,-10,0,0,55,54,60,59,55,55,113,116,110,15,81,79,81,79,81,72,108,67,163,104,254,254,350,336,360,318,321,250,285,0,2513,1925,29975,29964,29980,29981,29981,29982,29983,29984,29984,29985]} 1. d4 {[%emt 0:00:12]} Nf6 {[%emt 0:13:27]} 2. c4 {[%emt 0:00:07]} g6 {[%emt 0:00:05]} 3. Nc3 {[%emt 0:00:05]} Bg7 {[%emt 0:00:04]} 4. e4 {[%emt 0:00:07]} d6 {[%emt 0:00:01]} 5. h3 {[%emt 0:05:18]} O-O {[%emt 0:00:29]} 6. Be3 {[%emt 0:00:04]} e5 {[%emt 0:00:11]} 7. d5 {[%emt 0:00:07]} a5 {[%emt 0:00:12]} 8. g4 {[%emt 0:01:17]} c6 {[%emt 0:09:59]} 9. f3 {[%emt 0:05:15]} Bd7 {[%emt 0:09:37]} 10. Qd2 {[%emt 0:02:59]} Na6 {[%emt 0:04:27]} (10... cxd5 $14 11. cxd5 Na6) 11. h4 {[%emt 0:07:00][%cal Bh3h4,Bh4h5,Bh5h6][%mdl 32]} cxd5 {[%emt 0:07:20]} 12. cxd5 {[%emt 0:02:29]} a4 {[%emt 0:13:49]} 13. h5 {[%emt 0:37:05]} a3 {[%emt 0:05:13]} 14. Bxa6 {[%emt 0:05:16]} (14. Rb1 {is interesting.} axb2 15. Bb5 Nc5 16. h6) 14... axb2 {[%emt 0:00:30]} 15. Qxb2 {[%emt 0:00:05]} bxa6 {[%emt 0:00:12]} 16. h6 {[%emt 0:00:59]} Bh8 $1 {[%emt 0:00:03]} 17. Nge2 {[%emt 0:01:04]} Rb8 {[%emt 0:05:15]} 18. Qd2 {[%emt 0:04:21]} (18. Qa3 $5) 18... Rb4 {[%emt 0:07:51]} 19. Rb1 {[%emt 0:04:18]} a5 {[%emt 0:01:45]} 20. a3 {[%emt 0:02:28]} Rxb1+ {[%emt 0:01:58]} 21. Nxb1 {[%emt 0:00:02]} Qc7 {[%emt 0:00:41]} 22. Nbc3 {[%emt 0:04:17]} Rb8 {[%emt 0:04:49]} 23. O-O {[%emt 0:00:39]} Rb3 {[%emt 0:00:23]} 24. Rb1 {[%emt 0:03:19]} Qc4 {[%emt 0:02:00]} (24... Rxb1+ $11 25. Nxb1 Ne8) 25. Rxb3 $14 {[%emt 0:01:36]} Qxb3 {[%emt 0:00:02]} 26. Qa2 {[%emt 0:00:36]} Qb7 {[%emt 0:01:15]} 27. Qb1 {[%emt 0:00:54]} Qxb1+ {[%emt 0:09:14]} (27... Qc7 $1 $14) 28. Nxb1 $16 {[%emt 0:00:08]} Ne8 {[%emt 0:00:01]} 29. Bg5 {[%emt 0:08:08] White is more active.} (29. Nec3 $16) 29... Bf6 {[%emt 0:00:37]} (29... f5 $11) 30. Bxf6 {[%emt 0:00:06]} Nxf6 {[%emt 0:00:02][%mdl 4096] Endgame KBN-KNN} 31. Nd2 {[%emt 0:00:18]} Kf8 {[%emt 0:00:12]} 32. Nc3 {[%emt 0:00:25]} Ke7 {[%emt 0:00:29]} 33. a4 {[%emt 0:01:42] Threatens to win with Nb3.} Ng8 {[%emt 0:01:28] [#]} ({Black should try} 33... Kd8 $1 $14) 34. Nc4 {[%emt 0:00:06]} (34. g5 $1 $18) 34... Nxh6 {[%emt 0:00:46]} (34... f6 $16) 35. Nxa5 $18 {[%emt 0:02:07]} Kd8 {[%emt 0:01:15]} 36. Nc6+ {[%emt 0:01:17]} Bxc6 {[%emt 0:01:38]} 37. dxc6 {[%emt 0:00:02] Intending Nd5 and mate. KN-KN} Kc7 {[%emt 0:00:01] [#]} 38. Nd5+ $1 {[%emt 0:00:11]} Kxc6 {[%emt 0:02:09]} 39. Ne7+ $2 {[%emt 0:03:31]} (39. Nf6 $18) 39... Kc5 $2 {[%emt 0:00:30][%mdl 8192]} (39... Kd7 $11 40. a5 (40. Nd5 Ng8 $11) 40... f6 (40... Kxe7 $2 {too greedy.} 41. a6 $18)) 40. g5 {[%emt 0:00:00][%cal Bg4g5,Bg5h6][%mdl 32]} d5 {[%emt 0:00:00][%cal Bd6d5,Bd5d4][%mdl 32]} 41. gxh6 {[%emt 0:28:54]} d4 {[%emt 0:30:24]} 42. Kf2 {[%emt 0:00:52]} Kb4 {[%emt 0:00:00]} 43. Ke2 {[%emt 0:00:00]} Kxa4 {[%emt 0:00:00]} 44. Nd5 {[%emt 0:00:00]} f5 {[%emt 0:00:00]} 45. Kd3 {[%emt 0:00:00]} 1-0

[Event "Israel Team Championship 2025"]
[Site "Israel"]
[Date "2025.01.17"]
[Round "3.10"]
[White "Sherman, Raem"]
[Black "Kobo, Ori"]
[Result "0-1"]
[Annotator "TA"]
[ECO "C50"]
[WhiteElo "2354"]
[BlackElo "2539"]
[PlyCount "106"]
[EventDate "2025.01.07"]
[EventType "team-tourn"]
[EventCountry "ISR"]
[SourceTitle "playchess.com"]
[Source "ChessBase"]
[SourceQuality "1"]
[TimeControl "40/5400+30:1800+30"]

{[%evp 9,106,27,31,10,13,3,2,-12,-6,-14,-3,-10,-5,-21,-8,-17,0,0,0,-4,-10,-12,0,0,0,0,0,2,2,0,4,0,12,0,18,3,0,0,11,0,11,-2,-4,-14,0,0,0,0,0,0,0,0,0,0,0,0,0,0,0,0,0,0,0,-31,-22,-180,-171,-183,-171,-172,-105,-484,-403,-398,-384,-583,-578,-549,-544,-748,-590,-712,-570,-593,-589,-591,-587,-588,-567,-1141,-610,-29970,-29973,-29984,-638,-29979,-29964,-5181,-1245]} 1. e4 {[%emt 0:00:07]} e5 {[%emt 0:01:04]} 2. Nf3 {[%emt 0:00:12]} Nc6 {[%emt 0:00:10]} 3. Bc4 {[%emt 0:00:05]} d6 {[%emt 0:00:56]} 4. Nc3 {[%emt 0:00:34]} Na5 {[%emt 0:00:19]} 5. Be2 {[%emt 0:05:00]} c5 {[%emt 0:00:29]} 6. d3 {[%emt 0:06:12]} Nf6 {[%emt 0:02:56]} 7. Bg5 {[%emt 0:03:09]} Be7 {[%emt 0:01:04]} 8. Bxf6 {[%emt 0:01:21]} Bxf6 {[%emt 0:00:12]} 9. Nd5 {[%emt 0:00:06]} Nc6 {[%emt 0:04:37]} 10. O-O {[%emt 0:06:28]} Be6 {[%emt 0:02:23]} 11. c3 {[%emt 0:01:08]} O-O {[%emt 0:04:53]} 12. Nd2 {[%emt 0:07:42]} Bxd5 {[%emt 0:10:06]} 13. exd5 {[%emt 0:00:09]} Ne7 {[%emt 0:00:08][%cal Bc6e7,Be7g6,Bg6h8,Bh8f7,Bf7d8][%mdl 32]} 14. Bf3 {[%emt 0:00:09]} Bg5 {[%emt 0:05:04]} 15. a3 {[%emt 0:05:55] White is weak on the dark squares} f5 {[%emt 0:04:00]} 16. b4 {[%emt 0:01:28]} Qc7 {[%emt 0:09:05]} 17. c4 {[%emt 0:05:47]} Ng6 {[%emt 0:02:31]} 18. g3 {[%emt 0:04:31]} Rae8 {[%emt 0:15:31]} 19. bxc5 {[%emt 0:07:02]} Qxc5 {[%emt 0:04:07]} 20. Nb3 {[%emt 0:00:08]} Qc7 {[%emt 0:01:54]} 21. Bg2 {[%emt 0:02:07]} Nh8 {[%emt 0:05:01]} 22. Qc2 {[%emt 0:02:46]} Nf7 {[%emt 0:04:07]} 23. a4 {[%emt 0:07:55]} g6 {[%emt 0:07:36]} 24. Rab1 {[%emt 0:04:37]} Rc8 {[%emt 0:02:47]} 25. Qc3 {[%emt 0:03:16]} b6 {[%emt 0:03:43]} 26. Qb4 {[%emt 0:06:38]} Nd8 {[%emt 0:04:56]} 27. a5 {[%emt 0:01:08]} Nb7 {[%emt 0:00:04]} 28. axb6 axb6 {[%emt 0:00:02]} 29. Ra1 {[%emt 0:01:47]} Nc5 {[%emt 0:01:55]} 30. Nxc5 {[%emt 0:00:28]} bxc5 {[%emt 0:00:02]} 31. Qb5 {[%emt 0:00:18]} Qe7 {[%emt 0:00:46]} 32. Ra6 {[%emt 0:01:13]} Rcd8 {[%emt 0:02:13]} 33. Rfa1 {[%emt 0:02:46]} Rf7 {[%emt 0:00:23]} 34. R1a2 {[%emt 0:03:42]} Kg7 {[%emt 0:00:52]} 35. Qb6 {[%emt 0:01:44]} Rd7 {[%emt 0:00:22]} 36. Qc6 {[%emt 0:01:12]} Bf6 {[%emt 0:01:38]} 37. Rb2 $2 {[%emt 0:03:00]} (37. Qa4 $11 {and White stays safe.}) 37... e4 $19 {[%emt 0:00:19]} 38. Re2 {[%emt 0:00:22][%cal Rd3e4]} Bd4 $1 {[%emt 0:00:30] and ...Qg5 should not be overlooked} 39. dxe4 {[%emt 0:01:07][%cal Oe4e5]} fxe4 {[%emt 0:00:40]} (39... Qg5 $1 $19 40. Raa2 f4) 40. Bxe4 $2 {[%emt 0:05:23][%mdl 8192] [#]} (40. Qa4 $17 {is more resistant.}) 40... Bxf2+ $1 {[%emt 0:00:31][%mdl 512]} 41. Kg2 {[%emt 0:03:21] [#]} Qf6 $1 {[%emt 0:05:04] Prevents Bf3} 42. Qa4 {[%emt 0:07:53] [#]} (42. Qxd7 $142 Rxd7 43. Rxf2) 42... Bxg3 $1 {[%emt 0:03:44]} 43. Qd1 {[%emt 0:02:04] Wards off Qf1+} Be5 {[%emt 0:04:11]} 44. Ra3 {[%emt 0:00:42]} Qh4 {[%emt 0:01:45][%csl Ge5][%cal Rh4h2]} 45. Kh1 {[%emt 0:02:04] [#]} Bxh2 $1 {[%emt 0:01:37][%mdl 512]} 46. Rxh2 {[%emt 0:01:06]} Qxe4+ {[%emt 0:00:06]} 47. Rg2 {[%emt 0:00:24]} Rde7 {[%emt 0:03:42] ( -> ...Qh4+)} 48. Kh2 {[%emt 0:02:08]} Qxc4 {[%emt 0:01:26]} 49. Qh5 {[%emt 0:03:20]} Re5 {[%emt 0:02:00]} 50. Qh3 {[%emt 0:01:30]} Qf4+ {[%emt 0:01:11]} 51. Rag3 {[%emt 0:00:31]} Rxd5 {[%emt 0:00:30]} (51... Rff5 $142 52. Kg1 Qd4+ (52... Rxd5 $2 53. Qg4 $19) 53. Kh2 Rh5 (53... Qxd5 $2 54. Rg4 $19) (53... Rxd5 $2 54. Qg4 $19) 54. Rf3 Rxh3+ 55. Rxh3 Qf4+ (55... Qxd5 $2 56. Ra3 $19) (55... Rxd5 $2 56. Ra2 $19) 56. Rhg3 Rh5+ (56... Rxd5 $2 57. Kg1 $19) 57. Kg1 Qc1+ (57... Rxd5 $2 58. Kh1 $19) 58. Kf2 Qd2+ (58... Rxd5 $2 59. Rf3 $19) 59. Kf1 Qd1+ (59... Qxd5 $2 60. Re2 $19) 60. Kf2 Rf5+ (60... Qxd5 $2 61. Rg5 $19) 61. Ke3 Re5+ (61... Qxd5 {gets mated.} 62. Ke2 Re5+ 63. Re3 Qxg2+ 64. Kd3 c4+ 65. Kxc4 Rxe3 66. Kb5 Qb7+ 67. Ka4 Rb3 68. Ka5 Qb5#) 62. Kf2 Qe1+ (62... Qxd5 $2 63. Rf3 $19) 63. Kf3 Rf5+ (63... Rxd5 64. Rxg6+ hxg6 65. Rg4 Rd3+ 66. Kg2 Qe2+ 67. Kh1 Qf1+ 68. Rg1 Qh3#) 64. Kg4 Qe4+ 65. Kh3 Rh5#) 52. Kh1 {[%emt 0:00:22]} Rd1+ {[%emt 0:00:21]} 53. Kh2 {[%emt 0:00:06]} Rd3 {[%emt 0:00:34]} 0-1

[Event "Israel Team Championship 2025"]
[Site "Israel"]
[Date "2025.01.17"]
[Round "3.11"]
[White "Postny, Evgeny"]
[Black "Bar, Roman"]
[Result "1-0"]
[Annotator "TA"]
[ECO "E11"]
[WhiteElo "2567"]
[BlackElo "2458"]
[PlyCount "85"]
[EventDate "2025.01.07"]
[EventType "team-tourn"]
[EventCountry "ISR"]
[SourceTitle "playchess.com"]
[Source "ChessBase"]
[SourceQuality "1"]
[TimeControl "40/5400+30:1800+30"]

{[%evp 15,85,20,22,25,40,26,44,31,43,12,28,34,28,29,56,54,56,53,45,52,69,76,90,83,87,89,77,37,43,41,107,105,106,104,101,99,118,93,108,82,78,81,123,129,137,123,150,152,147,152,162,141,232,223,248,243,315,307,360,310,338,227,338,324,561,577,583,585,708,715,697,658]} 1. d4 {[%emt 0:01:34]} Nf6 {[%emt 0:00:06]} 2. c4 {[%emt 0:00:07]} e6 {[%emt 0:00:47]} 3. Nf3 {[%emt 0:00:13]} Bb4+ {[%emt 0:00:08]} 4. Nbd2 {[%emt 0:00:23]} b6 {[%emt 0:00:46]} 5. a3 {[%emt 0:02:15]} Bxd2+ {[%emt 0:00:07]} 6. Bxd2 {[%emt 0:00:06]} Bb7 {[%emt 0:00:15]} 7. e3 {[%emt 0:02:28]} O-O {[%emt 0:01:27]} 8. Be2 {[%emt 0:00:50]} d6 {[%emt 0:05:33]} 9. O-O {[%emt 0:00:10]} Nbd7 {[%emt 0:01:03][%cal Bb8d7,Bd7f6,Bf6e4][%mdl 32]} 10. b4 {[%emt 0:02:11]} Ne4 {[%emt 0:02:58]} 11. Be1 {[%emt 0:00:10]} c5 {[%emt 0:04:52]} 12. Qc2 {[%emt 0:02:03]} f5 {[%emt 0:14:28]} 13. Rd1 {[%emt 0:08:27]} Qe7 {[%emt 0:04:21]} 14. Qb2 {[%emt 0:05:09]} Ndf6 {[%emt 0:06:58]} 15. dxc5 {[%emt 0:10:37]} bxc5 {[%emt 0:00:38]} 16. Nd2 {[%emt 0:00:08]} Nxd2 {[%emt 0:19:27]} 17. Bxd2 {[%emt 0:00:15]} Ne4 {[%emt 0:00:18]} 18. Be1 {[%emt 0:04:23]} e5 {[%emt 0:00:38]} 19. f3 {[%emt 0:02:52]} Ng5 {[%emt 0:02:17]} 20. bxc5 {[%emt 0:11:54]} dxc5 {[%emt 0:00:06]} 21. Qb5 {[%emt 0:09:23] Threatens to win with Rd7. Prevents Bc6.} Rf7 $1 {[%emt 0:01:41][%cal Bf8f7,Bf7f6,Bf6b6][%mdl 32]} 22. Bc3 {[%emt 0:00:56]} a6 {[%emt 0:06:58]} (22... Rc8 $14) 23. Qb2 $16 {[%emt 0:03:00]} Re8 {[%emt 0:01:17] [#]} 24. Qd2 $1 {[%emt 0:05:47]} f4 {[%emt 0:08:06]} 25. e4 {[%emt 0:01:54]} Rf6 {[%emt 0:00:08]} 26. Qd7 {[%emt 0:04:51]} Nf7 {[%emt 0:00:44]} 27. Qxe7 {[%emt 0:05:40]} Rxe7 {[%emt 0:00:01]} 28. Rd2 {[%emt 0:01:52][%cal Bd1d2,Bd2b2,Bb2b6][%mdl 32]} Rb6 {[%emt 0:03:51] [#]} 29. Ba5 $1 {[%emt 0:06:22]} Rc6 {[%emt 0:08:55]} 30. Rb1 {[%emt 0:00:58][%cal Bf1b1,Bb1b6,Bb6d6][%mdl 32]} Rc8 {[%emt 0:01:10]} 31. Rdb2 {[%emt 0:02:02] White is more active.} Bc6 {[%emt 0:02:07]} 32. Rb6 {[%emt 0:02:23]} g5 {[%emt 0:00:16]} 33. Rxa6 {[%emt 0:00:38]} g4 {[%emt 0:00:34]} (33... Bb7 $16 {was necessary.} 34. Rab6 Bc6) 34. Rbb6 $18 {[%emt 0:01:49]} (34. fxg4 $6 Bxe4 35. Rbb6 Rd7) 34... Ba8 {[%emt 0:01:56]} 35. Bc3 {[%emt 0:02:01]} gxf3 {[%emt 0:00:52]} 36. gxf3 {[%emt 0:00:04]} ({Resist} 36. Bxf3 Rd8 37. Rb5 Ree8 38. Rxc5 Rd3 $18) 36... Ng5 {[%emt 0:00:11]} 37. Kf1 {[%emt 0:00:13]} Rd8 {[%emt 0:01:43][%cal Oa8e4]} 38. Rd6 {[%emt 0:01:15]} Rf8 {[%emt 0:00:12]} (38... Rxd6 $142 39. Rxd6 Nf7) 39. h4 {[%emt 0:01:04]} Nxe4 $2 {[%emt 0:01:27]} (39... Nf7 40. Rdb6 Rc8) 40. fxe4 {[%emt 0:00:06]} Bxe4 {[%emt 0:00:27]} 41. Bg4 {[%emt 0:07:27]} Bc2 {[%emt 0:07:14]} 42. Rac6 {[%emt 0:03:58]} f3 {[%emt 0:04:37]} 43. Kf2 {[%emt 0:00:24]} 1-0